[Event "Titled Tuesday Blitz October 11 Early 2022"]
[White "Lakshmi C"]
[Black "Skibbe, Willi"]
[WhiteFideId "25035347"]
[BlackFideId "4682190"]
[WhiteElo "1865"]
[BlackElo "2308"]
[Result "0-1"]
[Round "04"]
[TimeControl "180+1"]
[Date "2022.10.12"]
[WhiteClock "0:00:06"]
[BlackClock "0:01:06"]

1. e4 {[%clk 0:02:44]}  e5 {[%clk 0:02:57]} 2. Nf3 {[%clk 0:02:43]}  Nc6 {[%clk 0:02:58]} 3. Bb5 {[%clk 0:02:43]}  a6 {[%clk 0:02:57]} 4. Ba4 {[%clk 0:02:43]}  Nf6 {[%clk 0:02:57]} 5. O-O {[%clk 0:02:42]}  Be7 {[%clk 0:02:57]} 6. Re1 {[%clk 0:02:42]}  b5 {[%clk 0:02:57]} 7. Bb3 {[%clk 0:02:43]}  O-O {[%clk 0:02:58]} 8. c3 {[%clk 0:02:42]}  d5 {[%clk 0:02:58]} 9. exd5 {[%clk 0:02:42]}  Nxd5 {[%clk 0:02:58]} 10. Nxe5 {[%clk 0:02:42]}  Nxe5 {[%clk 0:02:59]} 11. Rxe5 {[%clk 0:02:42]}  c6 {[%clk 0:02:59]} 12. d4 {[%clk 0:02:34]}  Bd6 {[%clk 0:02:58]} 13. Re1 {[%clk 0:02:33]}  Qh4 {[%clk 0:02:58]} 14. g3 {[%clk 0:02:33]}  Qh3 {[%clk 0:02:58]} 15. Nd2 {[%clk 0:02:29]}  Bg4 {[%clk 0:02:49]} 16. Qc2 {[%clk 0:01:27]}  Rae8 {[%clk 0:02:44]} 17. Rf1 {[%clk 0:00:57]}  Re6 {[%clk 0:01:41]} 18. Bxd5 {[%clk 0:00:30]}  Rh6 {[%clk 0:01:15]} 19. Re1 {[%clk 0:00:09]}  Qxh2+ {[%clk 0:01:14]} 20. Kf1 {[%clk 0:00:09]}  cxd5 {[%clk 0:01:08]} 21. f4 {[%clk 0:00:06]}  Bh3# {[%clk 0:01:06]} 0-1


[Site "https://www.chess.com"]

[Event "Titled Tuesday Blitz October 11 Early 2022"]
[White "Lamaze, Simon"]
[Black "Toshali, V"]
[WhiteFideId "36069264"]
[BlackFideId "5072611"]
[WhiteElo "2272"]
[BlackElo "1973"]
[Result "1-0"]
[Round "04"]
[TimeControl "180+1"]
[Date "2022.10.12"]
[WhiteClock "0:00:58"]
[BlackClock "0:00:02"]

1. b3 {[%clk 0:03:00]}  e5 {[%clk 0:02:58]} 2. Bb2 {[%clk 0:03:01]}  Nc6 {[%clk 0:02:58]} 3. e3 {[%clk 0:03:01]}  Nf6 {[%clk 0:02:57]} 4. Bb5 {[%clk 0:03:01]}  d6 {[%clk 0:02:54]} 5. Nc3 {[%clk 0:03:00]}  g6 {[%clk 0:02:50]} 6. f4 {[%clk 0:02:58]}  Bg7 {[%clk 0:02:49]} 7. Bxc6+ {[%clk 0:02:57]}  bxc6 {[%clk 0:02:49]} 8. fxe5 {[%clk 0:02:58]}  dxe5 {[%clk 0:02:49]} 9. Nge2 {[%clk 0:02:53]}  O-O {[%clk 0:02:48]} 10. O-O {[%clk 0:02:53]}  Nd5 {[%clk 0:02:45]} 11. Na4 {[%clk 0:02:52]}  Qh4 {[%clk 0:02:42]} 12. Qe1 {[%clk 0:02:49]}  Qh6 {[%clk 0:02:13]} 13. Qg3 {[%clk 0:02:46]}  Qh5 {[%clk 0:02:05]} 14. Nec3 {[%clk 0:02:42]}  Ba6 {[%clk 0:01:51]} 15. d3 {[%clk 0:02:36]}  f6 {[%clk 0:01:27]} 16. Nc5 {[%clk 0:02:33]}  Bc8 {[%clk 0:01:23]} 17. N3e4 {[%clk 0:02:22]}  f5 {[%clk 0:01:15]} 18. Bxe5 {[%clk 0:02:13]}  fxe4 {[%clk 0:01:00]} 19. Bxg7 {[%clk 0:02:11]}  Kxg7 {[%clk 0:01:00]} 20. dxe4 {[%clk 0:02:11]}  Rxf1+ {[%clk 0:00:47]} 21. Rxf1 {[%clk 0:02:09]}  Nc3 {[%clk 0:00:31]} 22. Qxc7+ {[%clk 0:01:55]}  Kh6 {[%clk 0:00:31]} 23. Qf4+ {[%clk 0:01:32]}  Qg5 {[%clk 0:00:29]} 24. Qxg5+ {[%clk 0:01:31]}  Kxg5 {[%clk 0:00:29]} 25. Rf8 {[%clk 0:01:32]}  Bb7 {[%clk 0:00:23]} 26. Rf7 {[%clk 0:01:26]}  Bc8 {[%clk 0:00:20]} 27. h3 {[%clk 0:01:22]}  Kh6 {[%clk 0:00:19]} 28. g4 {[%clk 0:01:21]}  Nb5 {[%clk 0:00:19]} 29. e5 {[%clk 0:01:20]}  a5 {[%clk 0:00:16]} 30. e6 {[%clk 0:01:02]}  Nd6 {[%clk 0:00:13]} 31. Rf8 {[%clk 0:01:02]}  Bb7 {[%clk 0:00:12]} 32. Nxb7 {[%clk 0:00:58]}  Rxf8 {[%clk 0:00:12]} 33. Nxd6 {[%clk 0:00:58]}  Kg7 {[%clk 0:00:02]} 34. e7 {[%clk 0:00:58]} 1-0


[Site "https://www.chess.com"]

[Event "Titled Tuesday Blitz October 11 Early 2022"]
[White "Laohawirapap, Prin"]
[Black "Siva Mahadevan"]
[WhiteFideId "6205003"]
[BlackFideId "25043153"]
[WhiteElo "2113"]
[BlackElo "2249"]
[Result "0-1"]
[Round "04"]
[TimeControl "180+1"]
[Date "2022.10.12"]
[WhiteClock "0:00:01"]
[BlackClock "0:01:35"]

1. e4 {[%clk 0:03:00]}  c5 {[%clk 0:02:59]} 2. Nf3 {[%clk 0:03:00]}  Nc6 {[%clk 0:03:00]} 3. d4 {[%clk 0:03:00]}  cxd4 {[%clk 0:03:00]} 4. Nxd4 {[%clk 0:03:01]}  Nf6 {[%clk 0:03:01]} 5. Nc3 {[%clk 0:02:59]}  d6 {[%clk 0:03:02]} 6. Bg5 {[%clk 0:02:58]}  e6 {[%clk 0:03:02]} 7. Qd2 {[%clk 0:02:58]}  a6 {[%clk 0:03:02]} 8. O-O-O {[%clk 0:02:56]}  Bd7 {[%clk 0:03:02]} 9. Kb1 {[%clk 0:02:55]}  b5 {[%clk 0:03:01]} 10. Nxc6 {[%clk 0:02:52]}  Bxc6 {[%clk 0:03:02]} 11. f3 {[%clk 0:02:53]}  h6 {[%clk 0:03:01]} 12. Bf4 {[%clk 0:02:50]}  d5 {[%clk 0:03:01]} 13. exd5 {[%clk 0:02:33]}  Nxd5 {[%clk 0:03:02]} 14. Nxd5 {[%clk 0:02:33]}  Bxd5 {[%clk 0:02:54]} 15. Bd3 {[%clk 0:02:33]}  Be7 {[%clk 0:02:51]} 16. Rhe1 {[%clk 0:02:30]}  Ra7 {[%clk 0:02:34]} 17. Qe3 {[%clk 0:02:19]}  Rd7 {[%clk 0:02:33]} 18. b3 {[%clk 0:01:04]}  Bf6 {[%clk 0:02:04]} 19. Be5 {[%clk 0:01:02]}  O-O {[%clk 0:01:59]} 20. Bxf6 {[%clk 0:01:02]}  Qxf6 {[%clk 0:02:00]} 21. Be4 {[%clk 0:01:01]}  Rfd8 {[%clk 0:01:58]} 22. Bxd5 {[%clk 0:00:31]}  Rxd5 {[%clk 0:01:59]} 23. Rxd5 {[%clk 0:00:32]}  Rxd5 {[%clk 0:01:58]} 24. Qe2 {[%clk 0:00:32]}  Qd4 {[%clk 0:01:56]} 25. Qe3 {[%clk 0:00:28]}  Qb4 {[%clk 0:01:50]} 26. Qe4 {[%clk 0:00:18]}  Qc3 {[%clk 0:01:49]} 27. Qe2 {[%clk 0:00:10]}  Rd2 {[%clk 0:01:47]} 28. Qe4 {[%clk 0:00:08]}  a5 {[%clk 0:01:47]} 29. Rc1 {[%clk 0:00:05]}  a4 {[%clk 0:01:40]} 30. Qa8+ {[%clk 0:00:04]}  Kh7 {[%clk 0:01:39]} 31. Qe4+ {[%clk 0:00:03]}  g6 {[%clk 0:01:40]} 32. Qb7 {[%clk 0:00:02]}  Kg7 {[%clk 0:01:40]} 33. bxa4 {[%clk 0:00:01]}  Rd4 {[%clk 0:01:35]} 0-1


[Site "https://www.chess.com"]

[Event "Titled Tuesday Blitz October 11 Early 2022"]
[White "Lauridsen, Jesper Morch"]
[Black "Pourkashiyan, Atousa"]
[WhiteFideId "1401890"]
[BlackFideId "12502014"]
[WhiteElo "2170"]
[BlackElo "2247"]
[Result "0-1"]
[Round "04"]
[TimeControl "180+1"]
[Date "2022.10.12"]
[WhiteClock "0:00:03"]
[BlackClock "0:00:10"]

1. e4 {[%clk 0:03:00]}  c5 {[%clk 0:02:44]} 2. Nf3 {[%clk 0:02:58]}  e6 {[%clk 0:02:30]} 3. d4 {[%clk 0:02:56]}  cxd4 {[%clk 0:02:31]} 4. Nxd4 {[%clk 0:02:55]}  a6 {[%clk 0:02:24]} 5. Bd3 {[%clk 0:02:53]}  Bc5 {[%clk 0:02:18]} 6. Nb3 {[%clk 0:02:44]}  Ba7 {[%clk 0:02:10]} 7. Nc3 {[%clk 0:02:36]}  Nc6 {[%clk 0:02:08]} 8. Qe2 {[%clk 0:02:35]}  d6 {[%clk 0:02:03]} 9. Be3 {[%clk 0:02:34]}  Nf6 {[%clk 0:02:01]} 10. Rd1 {[%clk 0:02:28]}  Bxe3 {[%clk 0:01:45]} 11. Qxe3 {[%clk 0:02:26]}  b5 {[%clk 0:01:46]} 12. a3 {[%clk 0:02:06]}  Bb7 {[%clk 0:01:36]} 13. O-O {[%clk 0:02:00]}  O-O {[%clk 0:01:24]} 14. f4 {[%clk 0:01:53]}  Ng4 {[%clk 0:01:11]} 15. Qg3 {[%clk 0:01:31]}  Qb6+ {[%clk 0:01:10]} 16. Kh1 {[%clk 0:01:23]}  Ne3 {[%clk 0:01:10]} 17. Qf2 {[%clk 0:01:17]}  Qa7 {[%clk 0:01:06]} 18. Qh4 {[%clk 0:01:04]}  Nxd1 {[%clk 0:00:33]} 19. Rxd1 {[%clk 0:00:39]}  h6 {[%clk 0:00:32]} 20. Ne2 {[%clk 0:00:29]}  Rac8 {[%clk 0:00:32]} 21. Ng3 {[%clk 0:00:28]}  Ba8 {[%clk 0:00:31]} 22. Nh5 {[%clk 0:00:25]}  f5 {[%clk 0:00:24]} 23. exf5 {[%clk 0:00:19]}  exf5 {[%clk 0:00:24]} 24. Qg3 {[%clk 0:00:13]}  Qf7 {[%clk 0:00:24]} 25. Qh3 {[%clk 0:00:08]}  Ne7 {[%clk 0:00:24]} 26. Ng3 {[%clk 0:00:08]}  Be4 {[%clk 0:00:18]} 27. Nd4 {[%clk 0:00:07]}  Bxd3 {[%clk 0:00:17]} 28. cxd3 {[%clk 0:00:07]}  Qf6 {[%clk 0:00:13]} 29. Nf3 {[%clk 0:00:06]}  Qxb2 {[%clk 0:00:12]} 30. Nh5 {[%clk 0:00:06]}  Rc1 {[%clk 0:00:11]} 31. Rxc1 {[%clk 0:00:04]}  Qxc1+ {[%clk 0:00:12]} 32. Ng1 {[%clk 0:00:05]}  Rc8 {[%clk 0:00:10]} 33. Qg3 {[%clk 0:00:05]}  g6 {[%clk 0:00:09]} 34. Nf6+ {[%clk 0:00:03]}  Kf7 {[%clk 0:00:10]} 0-1


[Site "https://www.chess.com"]

[Event "Titled Tuesday Blitz October 11 Early 2022"]
[White "Le, Tuan Minh"]
[Black "Durarbayli, Vasif"]
[WhiteFideId "12401153"]
[BlackFideId "13402935"]
[WhiteElo "2530"]
[BlackElo "2586"]
[Result "0-1"]
[Round "04"]
[TimeControl "180+1"]
[Date "2022.10.11"]
[WhiteClock "0:00:02"]
[BlackClock "0:00:02"]

1. d4 {[%clk 0:03:00]}  g6 {[%clk 0:03:00]} 2. e4 {[%clk 0:03:00]}  Bg7 {[%clk 0:03:00]} 3. Nf3 {[%clk 0:03:01]}  d6 {[%clk 0:03:01]} 4. Bc4 {[%clk 0:03:01]}  Nf6 {[%clk 0:03:01]} 5. Nc3 {[%clk 0:03:02]}  O-O {[%clk 0:03:01]} 6. O-O {[%clk 0:03:02]}  Bg4 {[%clk 0:02:59]} 7. h3 {[%clk 0:02:56]}  Bxf3 {[%clk 0:02:58]} 8. Qxf3 {[%clk 0:02:57]}  Nc6 {[%clk 0:02:59]} 9. Ne2 {[%clk 0:02:42]}  e5 {[%clk 0:02:52]} 10. d5 {[%clk 0:02:42]}  Ne7 {[%clk 0:02:46]} 11. Ng3 {[%clk 0:02:42]}  Nd7 {[%clk 0:02:36]} 12. c3 {[%clk 0:02:18]}  f5 {[%clk 0:02:33]} 13. exf5 {[%clk 0:02:18]}  gxf5 {[%clk 0:02:24]} 14. Nh5 {[%clk 0:02:18]}  Nf6 {[%clk 0:02:21]} 15. Nxg7 {[%clk 0:02:05]}  Kxg7 {[%clk 0:02:22]} 16. Bb3 {[%clk 0:01:46]}  Qd7 {[%clk 0:02:13]} 17. c4 {[%clk 0:01:45]}  Rg8 {[%clk 0:02:02]} 18. Bc2 {[%clk 0:01:26]}  Kh8 {[%clk 0:01:59]} 19. Qc3 {[%clk 0:01:23]}  Ne4 {[%clk 0:01:42]} 20. Qd3 {[%clk 0:01:16]}  Rg6 {[%clk 0:01:36]} 21. Kh2 {[%clk 0:00:58]}  Rag8 {[%clk 0:01:21]} 22. g3 {[%clk 0:00:59]}  R8g7 {[%clk 0:00:46]} 23. Qf3 {[%clk 0:00:52]}  Nf6 {[%clk 0:00:31]} 24. Rg1 {[%clk 0:00:47]}  c6 {[%clk 0:00:29]} 25. Bd2 {[%clk 0:00:44]}  cxd5 {[%clk 0:00:27]} 26. cxd5 {[%clk 0:00:45]}  Nfxd5 {[%clk 0:00:24]} 27. Rad1 {[%clk 0:00:45]}  Nf6 {[%clk 0:00:16]} 28. Bc3 {[%clk 0:00:45]}  Qc7 {[%clk 0:00:10]} 29. Bxf5 {[%clk 0:00:42]}  Nxf5 {[%clk 0:00:10]} 30. Qxf5 {[%clk 0:00:42]}  Rf7 {[%clk 0:00:10]} 31. Qd3 {[%clk 0:00:38]}  Kg8 {[%clk 0:00:08]} 32. Rg2 {[%clk 0:00:33]}  Qc6 {[%clk 0:00:08]} 33. Kg1 {[%clk 0:00:33]}  Ne4 {[%clk 0:00:09]} 34. Be1 {[%clk 0:00:33]}  Ng5 {[%clk 0:00:07]} 35. g4 {[%clk 0:00:10]}  Nf3+ {[%clk 0:00:05]} 36. Kf1 {[%clk 0:00:10]}  Rh6 {[%clk 0:00:04]} 37. Rg3 {[%clk 0:00:10]}  Nd4 {[%clk 0:00:04]} 38. Kg1 {[%clk 0:00:06]}  Rf3 {[%clk 0:00:04]} 39. Rxf3 {[%clk 0:00:05]}  Nxf3+ {[%clk 0:00:05]} 40. Kf1 {[%clk 0:00:05]}  Nd4 {[%clk 0:00:05]} 41. Kg1 {[%clk 0:00:03]}  Nf3+ {[%clk 0:00:03]} 42. Kf1 {[%clk 0:00:03]}  Nd4 {[%clk 0:00:03]} 43. Kg1 {[%clk 0:00:03]}  Rf6 {[%clk 0:00:04]} 44. Bc3 {[%clk 0:00:03]}  Rf3 {[%clk 0:00:04]} 45. Qf1 {[%clk 0:00:03]}  Ne6 {[%clk 0:00:02]} 46. Qg2 {[%clk 0:00:03]}  Nf4 {[%clk 0:00:02]} 47. Qf1 {[%clk 0:00:01]}  Nxh3+ {[%clk 0:00:02]} 48. Kh2 {[%clk 0:00:02]}  Rxf2+ {[%clk 0:00:02]} 49. Kxh3 {[%clk 0:00:02]}  Qf3+ {[%clk 0:00:02]} 0-1


[Site "https://www.chess.com"]

[Event "Titled Tuesday Blitz October 11 Early 2022"]
[White "Li, Hui"]
[Black "Pimpalkhare, Vedant"]
[WhiteFideId "15400310"]
[BlackFideId "25048236"]
[WhiteElo "1954"]
[BlackElo "2182"]
[Result "0-1"]
[Round "04"]
[TimeControl "180+1"]
[Date "2022.10.12"]
[WhiteClock "0:00:06"]
[BlackClock "0:00:14"]

1. e4 {[%clk 0:03:00]}  e6 {[%clk 0:03:00]} 2. d4 {[%clk 0:03:00]}  d5 {[%clk 0:03:01]} 3. Nd2 {[%clk 0:02:59]}  c5 {[%clk 0:03:00]} 4. exd5 {[%clk 0:02:59]}  exd5 {[%clk 0:03:00]} 5. Ngf3 {[%clk 0:03:00]}  Nc6 {[%clk 0:03:01]} 6. Bb5 {[%clk 0:03:00]}  Bd6 {[%clk 0:03:00]} 7. O-O {[%clk 0:02:59]}  Ne7 {[%clk 0:03:01]} 8. dxc5 {[%clk 0:02:59]}  Bxc5 {[%clk 0:03:01]} 9. Nb3 {[%clk 0:03:00]}  Bd6 {[%clk 0:03:01]} 10. Re1 {[%clk 0:02:56]}  O-O {[%clk 0:01:56]} 11. Bd3 {[%clk 0:02:50]}  Re8 {[%clk 0:01:52]} 12. Bg5 {[%clk 0:02:39]}  f6 {[%clk 0:01:51]} 13. Bh4 {[%clk 0:02:36]}  Bg4 {[%clk 0:01:46]} 14. Bg3 {[%clk 0:02:33]}  Ne5 {[%clk 0:01:39]} 15. Be2 {[%clk 0:02:24]}  Be6 {[%clk 0:01:30]} 16. Nbd4 {[%clk 0:02:21]}  Bf7 {[%clk 0:01:29]} 17. Bb5 {[%clk 0:02:12]}  Rf8 {[%clk 0:01:22]} 18. Nxe5 {[%clk 0:01:56]}  fxe5 {[%clk 0:01:23]} 19. Bxe5 {[%clk 0:01:56]}  Bxe5 {[%clk 0:01:23]} 20. Rxe5 {[%clk 0:01:57]}  Ng6 {[%clk 0:01:24]} 21. Re1 {[%clk 0:01:55]}  Qf6 {[%clk 0:01:22]} 22. c3 {[%clk 0:01:50]}  Nf4 {[%clk 0:01:21]} 23. Bf1 {[%clk 0:01:38]}  Bh5 {[%clk 0:01:14]} 24. Qd2 {[%clk 0:01:31]}  Qg5 {[%clk 0:01:11]} 25. Qe3 {[%clk 0:01:26]}  Rf6 {[%clk 0:01:01]} 26. Qg3 {[%clk 0:01:22]}  Qh6 {[%clk 0:01:00]} 27. Re5 {[%clk 0:00:50]}  Raf8 {[%clk 0:00:58]} 28. Rae1 {[%clk 0:00:46]}  Rg6 {[%clk 0:00:55]} 29. Qh4 {[%clk 0:00:45]}  Rg4 {[%clk 0:00:49]} 30. Rxh5 {[%clk 0:00:27]}  Rxh4 {[%clk 0:00:40]} 31. Rxh6 {[%clk 0:00:26]}  Rxh6 {[%clk 0:00:41]} 32. g3 {[%clk 0:00:22]}  Ng6 {[%clk 0:00:30]} 33. Bg2 {[%clk 0:00:21]}  Rh5 {[%clk 0:00:29]} 34. Bf3 {[%clk 0:00:18]}  Re5 {[%clk 0:00:29]} 35. Re3 {[%clk 0:00:13]}  Rxe3 {[%clk 0:00:28]} 36. fxe3 {[%clk 0:00:14]}  Rd8 {[%clk 0:00:28]} 37. Ne6 {[%clk 0:00:13]}  Rd6 {[%clk 0:00:28]} 38. Nd4 {[%clk 0:00:10]}  Ne5 {[%clk 0:00:27]} 39. Bg2 {[%clk 0:00:11]}  Nc4 {[%clk 0:00:26]} 40. Nb5 {[%clk 0:00:09]}  Rd8 {[%clk 0:00:23]} 41. Nxa7 {[%clk 0:00:08]}  Nxe3 {[%clk 0:00:22]} 42. Nb5 {[%clk 0:00:08]}  Nc4 {[%clk 0:00:19]} 43. b3 {[%clk 0:00:07]}  Nb6 {[%clk 0:00:18]} 44. Nd4 {[%clk 0:00:07]}  Rc8 {[%clk 0:00:18]} 45. c4 {[%clk 0:00:06]}  dxc4 {[%clk 0:00:17]} 46. bxc4 {[%clk 0:00:07]}  Rxc4 {[%clk 0:00:16]} 47. Nf5 {[%clk 0:00:07]}  Rc1+ {[%clk 0:00:16]} 48. Kf2 {[%clk 0:00:07]}  Rc2+ {[%clk 0:00:16]} 49. Kg1 {[%clk 0:00:07]}  Rxa2 {[%clk 0:00:17]} 50. Bxb7 {[%clk 0:00:06]}  g6 {[%clk 0:00:15]} 51. Nd6 {[%clk 0:00:05]}  Kf8 {[%clk 0:00:15]} 52. Bc6 {[%clk 0:00:05]}  Rb2 {[%clk 0:00:14]} 53. h4 {[%clk 0:00:03]}  Ke7 {[%clk 0:00:14]} 54. Ne4 {[%clk 0:00:03]}  Nc4 {[%clk 0:00:14]} 55. Ng5 {[%clk 0:00:03]}  Ne5 {[%clk 0:00:13]} 56. Be4 {[%clk 0:00:02]}  h6 {[%clk 0:00:14]} 57. Nf3 {[%clk 0:00:03]}  Nxf3+ {[%clk 0:00:13]} 58. Bxf3 {[%clk 0:00:03]}  Kf6 {[%clk 0:00:14]} 59. Bg2 {[%clk 0:00:04]}  Ke5 {[%clk 0:00:14]} 60. Bf3 {[%clk 0:00:04]}  Kf5 {[%clk 0:00:15]} 61. Bg2 {[%clk 0:00:04]}  Kg4 {[%clk 0:00:15]} 62. Be4 {[%clk 0:00:04]}  Kxg3 {[%clk 0:00:14]} 63. Kf1 {[%clk 0:00:04]}  g5 {[%clk 0:00:14]} 64. hxg5 {[%clk 0:00:05]}  hxg5 {[%clk 0:00:15]} 65. Bd5 {[%clk 0:00:05]}  g4 {[%clk 0:00:15]} 66. Bc6 {[%clk 0:00:05]}  Kh2 {[%clk 0:00:15]} 67. Ke1 {[%clk 0:00:05]}  g3 {[%clk 0:00:14]} 68. Kf1 {[%clk 0:00:06]}  g2+ {[%clk 0:00:14]} 0-1


[Site "https://www.chess.com"]

[Event "Titled Tuesday Blitz October 11 Early 2022"]
[White "Liyanage, Ranindu Dilshan"]
[Black "Garv Gaur"]
[WhiteFideId "9915834"]
[BlackFideId "45030839"]
[WhiteElo "2210"]
[BlackElo "1960"]
[Result "1-0"]
[Round "04"]
[TimeControl "180+1"]
[Date "2022.10.12"]
[WhiteClock "0:00:18"]
[BlackClock "0:00:08"]

1. e4 {[%clk 0:03:00]}  c6 {[%clk 0:03:00]} 2. d4 {[%clk 0:03:00]}  d5 {[%clk 0:03:01]} 3. e5 {[%clk 0:03:01]}  Bf5 {[%clk 0:03:00]} 4. h4 {[%clk 0:03:01]}  h5 {[%clk 0:03:00]} 5. c4 {[%clk 0:03:01]}  e6 {[%clk 0:02:59]} 6. Nc3 {[%clk 0:03:00]}  Ne7 {[%clk 0:02:54]} 7. Nge2 {[%clk 0:03:00]}  Bg4 {[%clk 0:02:53]} 8. Bg5 {[%clk 0:02:51]}  Qd7 {[%clk 0:02:52]} 9. Qd2 {[%clk 0:02:40]}  dxc4 {[%clk 0:02:50]} 10. Ng3 {[%clk 0:02:38]}  Nd5 {[%clk 0:02:49]} 11. Bxc4 {[%clk 0:02:36]}  Bb4 {[%clk 0:02:48]} 12. Nge4 {[%clk 0:02:31]}  Bf5 {[%clk 0:02:45]} 13. Ng3 {[%clk 0:02:26]}  Bg6 {[%clk 0:02:41]} 14. O-O {[%clk 0:02:25]}  O-O {[%clk 0:02:34]} 15. Rac1 {[%clk 0:02:23]}  f6 {[%clk 0:02:22]} 16. exf6 {[%clk 0:02:16]}  gxf6 {[%clk 0:02:23]} 17. Bh6 {[%clk 0:02:08]}  Re8 {[%clk 0:02:23]} 18. Qe2 {[%clk 0:02:06]}  Qf7 {[%clk 0:02:17]} 19. Nce4 {[%clk 0:01:59]}  Nd7 {[%clk 0:02:15]} 20. Qf3 {[%clk 0:01:49]}  Kh7 {[%clk 0:02:07]} 21. Be3 {[%clk 0:01:46]}  Rg8 {[%clk 0:01:52]} 22. a3 {[%clk 0:01:45]}  Be7 {[%clk 0:01:51]} 23. Bd2 {[%clk 0:01:39]}  Rae8 {[%clk 0:01:35]} 24. Bd3 {[%clk 0:01:39]}  Kh8 {[%clk 0:01:18]} 25. Rfe1 {[%clk 0:01:35]}  Bf8 {[%clk 0:01:11]} 26. Re2 {[%clk 0:01:30]}  Qh7 {[%clk 0:01:10]} 27. Rce1 {[%clk 0:01:28]}  e5 {[%clk 0:01:10]} 28. Bc4 {[%clk 0:01:19]}  exd4 {[%clk 0:01:01]} 29. Bxd5 {[%clk 0:01:16]}  cxd5 {[%clk 0:01:02]} 30. Nxf6 {[%clk 0:01:16]}  Nxf6 {[%clk 0:01:03]} 31. Qxf6+ {[%clk 0:01:17]}  Bg7 {[%clk 0:01:04]} 32. Qg5 {[%clk 0:01:02]}  d3 {[%clk 0:00:50]} 33. Rxe8 {[%clk 0:01:00]}  Rxe8 {[%clk 0:00:51]} 34. Rxe8+ {[%clk 0:01:01]}  Bxe8 {[%clk 0:00:52]} 35. Qxd5 {[%clk 0:00:56]}  Bxb2 {[%clk 0:00:40]} 36. Ne4 {[%clk 0:00:47]}  Qd7 {[%clk 0:00:38]} 37. Qb3 {[%clk 0:00:41]}  Bg7 {[%clk 0:00:33]} 38. Nc5 {[%clk 0:00:37]}  Qe7 {[%clk 0:00:22]} 39. Nxd3 {[%clk 0:00:34]}  Qxh4 {[%clk 0:00:16]} 40. Qxb7 {[%clk 0:00:30]}  Qc4 {[%clk 0:00:14]} 41. Qf3 {[%clk 0:00:22]}  Bg6 {[%clk 0:00:08]} 42. Nf4 {[%clk 0:00:20]}  Kh7 {[%clk 0:00:08]} 43. Nxh5 {[%clk 0:00:18]} 1-0


[Site "https://www.chess.com"]

[Event "Titled Tuesday Blitz October 11 Early 2022"]
[White "Lucas, Arthur"]
[Black "Valle Maytin, Luis Enrique"]
[WhiteFideId "26093073"]
[BlackFideId "3503666"]
[WhiteElo "2251"]
[BlackElo "2225"]
[Result "1-0"]
[Round "04"]
[TimeControl "180+1"]
[Date "2022.10.12"]
[WhiteClock "0:00:08"]
[BlackClock "0:00:14"]

1. e4 {[%clk 0:02:57]}  c6 {[%clk 0:02:58]} 2. Nc3 {[%clk 0:02:57]}  d5 {[%clk 0:02:59]} 3. Nf3 {[%clk 0:02:57]}  Bg4 {[%clk 0:02:58]} 4. h3 {[%clk 0:02:57]}  Bxf3 {[%clk 0:02:56]} 5. Qxf3 {[%clk 0:02:58]}  e6 {[%clk 0:02:57]} 6. Be2 {[%clk 0:02:57]}  Nf6 {[%clk 0:02:55]} 7. O-O {[%clk 0:02:56]}  Nbd7 {[%clk 0:02:51]} 8. d4 {[%clk 0:02:55]}  dxe4 {[%clk 0:02:42]} 9. Nxe4 {[%clk 0:02:56]}  Nxe4 {[%clk 0:02:41]} 10. Qxe4 {[%clk 0:02:57]}  Nf6 {[%clk 0:02:41]} 11. Qd3 {[%clk 0:02:57]}  Be7 {[%clk 0:02:40]} 12. a4 {[%clk 0:02:57]}  O-O {[%clk 0:02:40]} 13. a5 {[%clk 0:02:57]}  Qc7 {[%clk 0:02:37]} 14. a6 {[%clk 0:02:53]}  b5 {[%clk 0:02:36]} 15. Bf3 {[%clk 0:02:49]}  Rad8 {[%clk 0:02:35]} 16. Qc3 {[%clk 0:02:27]}  Nd5 {[%clk 0:02:31]} 17. Qb3 {[%clk 0:02:17]}  Nb6 {[%clk 0:02:30]} 18. c3 {[%clk 0:02:13]}  Bf6 {[%clk 0:02:23]} 19. Re1 {[%clk 0:02:10]}  Nc4 {[%clk 0:02:14]} 20. Qc2 {[%clk 0:02:01]}  c5 {[%clk 0:02:09]} 21. dxc5 {[%clk 0:01:49]}  Qxc5 {[%clk 0:02:10]} 22. Bf4 {[%clk 0:01:18]}  b4 {[%clk 0:01:43]} 23. cxb4 {[%clk 0:01:13]}  Qxb4 {[%clk 0:01:44]} 24. Re4 {[%clk 0:01:06]}  Qxb2 {[%clk 0:01:37]} 25. Qxb2 {[%clk 0:01:03]}  Nxb2 {[%clk 0:01:37]} 26. Rb1 {[%clk 0:00:59]}  Nd3 {[%clk 0:01:36]} 27. Be3 {[%clk 0:00:55]}  Rd7 {[%clk 0:01:25]} 28. Rb7 {[%clk 0:00:51]}  Rfd8 {[%clk 0:01:02]} 29. Bxa7 {[%clk 0:00:27]}  Ne5 {[%clk 0:00:56]} 30. Be2 {[%clk 0:00:19]}  Nc6 {[%clk 0:00:46]} 31. Bb6 {[%clk 0:00:16]}  Rd2 {[%clk 0:00:27]} 32. Bxd8 {[%clk 0:00:14]}  Bxd8 {[%clk 0:00:20]} 33. Bf3 {[%clk 0:00:11]}  Ra2 {[%clk 0:00:20]} 34. Rc4 {[%clk 0:00:07]}  Ne5 {[%clk 0:00:14]} 35. Rc8 {[%clk 0:00:07]}  Nxf3+ {[%clk 0:00:14]} 36. gxf3 {[%clk 0:00:08]}  Ra1+ {[%clk 0:00:14]} 37. Kg2 {[%clk 0:00:08]} 1-0


[Site "https://www.chess.com"]